[Event "RUS-IND U14 Match 2019"]
[Site "Sochi"]
[Date "2019.06.07"]
[Round "6.1"]
[White "Murzin, Volodar"]
[Black "Mendonca, Leon Luke"]
[Result "1/2-1/2"]
[ECO "B90"]
[WhiteElo "2418"]
[BlackElo "2405"]
[Annotator "ChessBase"]
[PlyCount "63"]
[EventDate "2019.06.02"]
[EventType "team-tourn"]
[EventCountry "RUS"]
[SourceTitle "playchess.com"]
[Source "ChessBase"]
[SourceQuality "1"]
[WhiteTeam "Russia"]
[BlackTeam "India"]
[WhiteTeamCountry "RUS"]
[BlackTeamCountry "IND"]
[TimeControl "5400+30"]

1. e4 {[%emt 0:00:00]} c5 {[%emt 0:00:00]} 2. Nf3 {[%emt 0:00:00]} d6 {[%emt 0:00:00]} 3. d4 {[%emt 0:00:01]} cxd4 {[%emt 0:00:00]} 4. Nxd4 {[%emt 0:00:03]} Nf6 {[%emt 0:00:35]} 5. Nc3 {[%emt 0:00:07]} a6 {[%emt 0:00:00]} 6. h3 {[%emt 0:00:16]} e5 {[%emt 0:00:00]} 7. Nb3 {[%emt 0:00:07]} Be6 {[%emt 0:02:56]} 8. f4 {[%emt 0:00:24]} Qc7 {[%emt 0:02:17]} 9. f5 {[%emt 0:00:53]} Bc4 {[%emt 0:01:37]} 10. Bxc4 {[%emt 0:00:19]} Qxc4 {[%emt 0:00:41]} 11. Qd3 {[%emt 0:00:11]} Qxd3 {[%emt 0:01:16]} 12. cxd3 {[%emt 0:00:01]} Nbd7 {[%emt 0:09:28]} 13. Bg5 {[%emt 0:00:02]} d5 {[%emt 0:03:09]} 14. exd5 {[%emt 0:10:36]} Bb4 {[%emt 0:19:36]} 15. O-O {[%emt 0:05:42]} Bxc3 {[%emt 0:04:02]} 16. bxc3 {[%emt 0:07:13]} Nxd5 {[%emt 0:08:23]} 17. Bd2 {[%emt 0:03:27]} a5 {[%emt 0:01:09]} 18. c4 {[%emt 0:03:05]} Nb4 {[%emt 0:16:08]} 19. Nxa5 {[%emt 0:10:47]} Nxd3 {[%emt 0:05:23]} 20. Nxb7 {[%emt 0:00:44]} O-O {[%emt 0:02:06]} 21. Rf3 {[%emt 0:00:37]} N7c5 {[%emt 0:03:33]} 22. Nxc5 {[%emt 0:07:58]} Nxc5 {[%emt 0:02:51]} 23. f6 {[%emt 0:00:54]} Ne4 {[%emt 0:00:02]} 24. fxg7 {[%emt 0:06:55]} Rfc8 {[%emt 0:04:17]} 25. Bb4 {[%emt 0:01:28]} Rxc4 {[%emt 0:00:10]} 26. Bf8 {[%emt 0:06:49]} Rd8 {[%emt 0:00:44]} 27. Re1 {[%emt 0:00:38]} Rd2 {[%emt 0:04:45]} 28. Rfe3 {[%emt 0:07:35]} Rcc2 {[%emt 0:00:49]} 29. Rxe4 {[%emt 0:00:47]} Rxg2+ {[%emt 0:00:13]} 30. Kh1 {[%emt 0:00:24]} Rh2+ {[%emt 0:00:04]} 31. Kg1 {[%emt 0:00:02]} Rhg2+ {[%emt 0:00:07]} 32. Kh1 {[%emt 0:00:04]} 1/2-1/2

[Event "RUS-IND U14 Match 2019"]
[Site "Sochi"]
[Date "2019.06.07"]
[Round "6.2"]
[White "Tsvetkov, Andrey"]
[Black "Gukesh D"]
[Result "0-1"]
[ECO "E73"]
[WhiteElo "2323"]
[BlackElo "2543"]
[Annotator "ChessBase"]
[PlyCount "100"]
[EventDate "2019.06.02"]
[EventType "team-tourn"]
[EventCountry "RUS"]
[SourceTitle "playchess.com"]
[Source "ChessBase"]
[SourceQuality "1"]
[WhiteTeam "Russia"]
[BlackTeam "India"]
[WhiteTeamCountry "RUS"]
[BlackTeamCountry "IND"]
[TimeControl "5400+30"]

1. d4 {[%emt 0:00:00]} Nf6 {[%emt 0:00:00]} 2. c4 {[%emt 0:00:00]} g6 {[%emt 0:00:00]} 3. Nc3 {[%emt 0:00:00]} Bg7 {[%emt 0:00:00]} 4. e4 {[%emt 0:00:00]} d6 {[%emt 0:00:00]} 5. Be2 {[%emt 0:00:07]} O-O {[%emt 0:00:16]} 6. Be3 {[%emt 0:00:07]} e5 {[%emt 0:01:01]} 7. d5 {[%emt 0:00:08]} Na6 {[%emt 0:00:54]} 8. h4 {[%emt 0:00:08]} Nc5 {[%emt 0:09:02]} 9. Qc2 {[%emt 0:00:08]} h5 {[%emt 0:03:49]} 10. f3 {[%emt 0:01:14]} a5 {[%emt 0:02:26]} 11. O-O-O {[%emt 0:00:00]} Bd7 {[%emt 0:02:15]} 12. Nh3 {[%emt 0:00:16]} Qb8 {[%emt 0:06:30]} 13. Nf2 {[%emt 0:01:21]} c6 {[%emt 0:00:30]} 14. Qd2 {[%emt 0:00:47]} Rc8 {[%emt 0:00:31]} 15. Bxc5 {[%emt 0:00:39]} dxc5 {[%emt 0:00:29]} 16. g4 {[%emt 0:01:46]} a4 {[%emt 0:06:31]} 17. g5 {[%emt 0:03:40]} Ne8 {[%emt 0:12:03]} 18. Qe3 {[%emt 0:12:05]} a3 {[%emt 0:11:01]} 19. b3 {[%emt 0:11:00]} b6 {[%emt 0:00:07]} 20. Rd2 {[%emt 0:00:04]} Nc7 {[%emt 0:10:52]} 21. Rhd1 {[%emt 0:07:45]} Na6 {[%emt 0:00:42]} 22. Bf1 {[%emt 0:01:47]} Kh7 {[%emt 0:02:06]} 23. Qe2 {[%emt 0:01:35]} Nb4 {[%emt 0:00:56]} 24. dxc6 {[%emt 0:01:35]} Be6 {[%emt 0:05:45]} 25. c7 {[%emt 0:11:06]} Rxc7 {[%emt 0:06:22]} 26. Nd5 {[%emt 0:08:21]} Rc8 {[%emt 0:07:23]} 27. Nxb4 {[%emt 0:12:09]} cxb4 {[%emt 0:00:45]} 28. Kb1 {[%emt 0:00:00]} Ra7 {[%emt 0:03:51]} 29. Nd3 {[%emt 0:09:43]} Bf8 {[%emt 0:00:39]} 30. Qh2 {[%emt 0:04:03]} Bd6 {[%emt 0:03:24]} 31. Nf4 {[%emt 0:01:45]} exf4 {[%emt 0:00:31]} 32. Rxd6 {[%emt 0:00:38]} b5 {[%emt 0:00:29]} 33. Qxf4 {[%emt 0:03:04]} Rd7 {[%emt 0:02:24]} 34. Qd2 {[%emt 0:04:03]} Rxd6 {[%emt 0:00:01]} 35. Qxd6 {[%emt 0:00:06]} Qa7 {[%emt 0:01:56]} 36. Qd4 {[%emt 0:02:14]} Qc7 {[%emt 0:00:42]} 37. c5 {[%emt 0:00:08]} Qh2 {[%emt 0:01:04]} 38. Qd2 {[%emt 0:02:04]} Qg3 {[%emt 0:00:05]} 39. Qe3 {[%emt 0:00:05]} Qxh4 {[%emt 0:00:15]} 40. Bxb5 {[%emt 0:03:08]} Qh2 {[%emt 0:01:15]} 41. Be2 {[%emt 0:00:36]} h4 {[%emt 0:00:26]} 42. Rc1 {[%emt 0:00:06]} h3 {[%emt 0:00:13]} 43. c6 {[%emt 0:00:45]} Qe5 {[%emt 0:00:42]} 44. Qd2 {[%emt 0:00:37]} Rd8 {[%emt 0:00:09]} 45. Qc2 {[%emt 0:00:34]} Qxg5 {[%emt 0:00:38]} 46. c7 {[%emt 0:00:24]} Rd2 {[%emt 0:00:32]} 47. c8=Q {[%emt 0:00:34]} Bxc8 {[%emt 0:00:35]} 48. Qxc8 {[%emt 0:00:24]} Rb2+ {[%emt 0:00:25]} 49. Ka1 {[%emt 0:00:38]} Qe5 {[%emt 0:00:35]} 50. Qxh3+ {[%emt 0:00:28]} Kg7 {[%emt 0:00:24]} 0-1

[Event "RUS-IND U14 Match 2019"]
[Site "Sochi"]
[Date "2019.06.07"]
[Round "6.3"]
[White "Kirchei, Viktoriia"]
[Black "Savitha Shri B"]
[Result "0-1"]
[ECO "B53"]
[WhiteElo "2026"]
[BlackElo "2144"]
[Annotator "ChessBase"]
[PlyCount "96"]
[EventDate "2019.06.02"]
[EventType "team-tourn"]
[EventCountry "RUS"]
[SourceTitle "playchess.com"]
[Source "ChessBase"]
[SourceQuality "1"]
[WhiteTeam "Russia"]
[BlackTeam "India"]
[BlackTeamCountry "IND"]
[TimeControl "5400+30"]

1. e4 {[%emt 0:00:00]} c5 {[%emt 0:00:00]} 2. Nf3 {[%emt 0:00:00]} d6 {[%emt 0:00:00]} 3. d4 {[%emt 0:00:00]} cxd4 {[%emt 0:00:00]} 4. Qxd4 {[%emt 0:00:00]} Nc6 {[%emt 0:00:03]} 5. Bb5 {[%emt 0:00:00]} a6 {[%emt 0:00:06]} 6. Bxc6+ {[%emt 0:00:19]} bxc6 {[%emt 0:00:07]} 7. c4 {[%emt 0:01:21]} e5 {[%emt 0:00:11]} 8. Qd3 {[%emt 0:01:18]} Ne7 {[%emt 0:00:10]} 9. Nc3 {[%emt 0:00:28]} Ng6 {[%emt 0:00:07]} 10. Be3 {[%emt 0:02:45]} Be6 {[%emt 0:06:10]} 11. Rd1 {[%emt 0:09:15]} Bg4 {[%emt 0:12:37]} 12. Bg5 {[%emt 0:03:47]} Qc7 {[%emt 0:04:50]} 13. h3 {[%emt 0:03:47]} Be6 {[%emt 0:00:10]} 14. Nh4 {[%emt 0:06:30]} Nxh4 {[%emt 0:04:19]} 15. Bxh4 {[%emt 0:00:06]} f6 {[%emt 0:02:09]} 16. Bg3 {[%emt 0:00:54]} Be7 {[%emt 0:04:50]} 17. f4 {[%emt 0:02:41]} O-O {[%emt 0:00:49]} 18. f5 {[%emt 0:00:53]} Bf7 {[%emt 0:00:12]} 19. Bf2 {[%emt 0:01:12]} Rad8 {[%emt 0:02:28]} 20. O-O {[%emt 0:02:19]} Rd7 {[%emt 0:07:46]} 21. Na4 {[%emt 0:02:26]} Qb8 {[%emt 0:18:06]} 22. b3 {[%emt 0:04:22]} Rfd8 {[%emt 0:11:48]} 23. Bb6 {[%emt 0:01:50]} Re8 {[%emt 0:01:00]} 24. Rf2 {[%emt 0:02:22]} Rb7 {[%emt 0:08:25]} 25. Ba5 {[%emt 0:04:03]} d5 {[%emt 0:03:51]} 26. c5 {[%emt 0:09:04]} Rb5 {[%emt 0:05:33]} 27. b4 {[%emt 0:00:37]} Bd8 {[%emt 0:05:12]} 28. Bxd8 {[%emt 0:04:15]} Rxb4 {[%emt 0:00:00]} 29. Bxf6 {[%emt 0:01:51]} gxf6 {[%emt 0:00:04]} 30. Nb6 {[%emt 0:00:41]} Rxe4 {[%emt 0:00:42]} 31. Qxa6 {[%emt 0:00:45]} Qc7 {[%emt 0:00:58]} 32. Rf3 {[%emt 0:04:47]} Kh8 {[%emt 0:00:03]} 33. Rg3 {[%emt 0:01:49]} Rf4 {[%emt 0:00:39]} 34. Nxd5 {[%emt 0:00:45]} Bxd5 {[%emt 0:00:58]} 35. Rxd5 {[%emt 0:00:05]} Rd4 {[%emt 0:02:20]} 36. Rxd4 {[%emt 0:03:29]} exd4 {[%emt 0:00:02]} 37. Qd3 {[%emt 0:01:19]} Qf4 {[%emt 0:00:19]} 38. Rf3 {[%emt 0:01:18]} Qc1+ {[%emt 0:00:24]} 39. Kh2 {[%emt 0:00:21]} Qxc5 {[%emt 0:00:05]} 40. Rf4 {[%emt 0:02:48]} Rd8 {[%emt 0:00:00]} 41. Re4 {[%emt 0:05:01]} Qd6+ {[%emt 0:00:05]} 42. g3 {[%emt 0:00:07]} c5 {[%emt 0:01:00]} 43. Re6 {[%emt 0:00:54]} Qd5 {[%emt 0:00:28]} 44. Rxf6 {[%emt 0:00:05]} Qxa2+ {[%emt 0:00:07]} 45. Kg1 {[%emt 0:02:24]} Rb8 {[%emt 0:00:05]} 46. Rf8+ {[%emt 0:00:13]} Rxf8 {[%emt 0:00:21]} 47. Qe4 {[%emt 0:02:11]} Qa1+ {[%emt 0:00:07]} 48. Kf2 {[%emt 0:00:02]} Qb2+ {[%emt 0:00:31]} 0-1

[Event "RUS-IND U14 Match 2019"]
[Site "Sochi"]
[Date "2019.06.07"]
[Round "6.4"]
[White "Nur-Mukhametova, Alisa"]
[Black "Ravi Teja R"]
[Result "1/2-1/2"]
[ECO "B01"]
[WhiteElo "1983"]
[BlackElo "1047"]
[Annotator "NA"]
[PlyCount "97"]
[EventDate "2019.06.02"]
[EventType "team-tourn"]
[EventCountry "RUS"]
[SourceTitle "playchess.com"]
[Source "ChessBase"]
[SourceQuality "1"]
[WhiteTeam "Russia"]
[BlackTeam "India"]
[WhiteTeamCountry "RUS"]
[BlackTeamCountry "IND"]
[TimeControl "5400+30"]

1. e4 {[%emt 0:00:00]} d5 {[%emt 0:00:00]} 2. exd5 {[%emt 0:00:00]} Nf6 {[%emt 0:00:31]} 3. d4 {[%emt 0:00:12]} Bg4 {[%emt 0:00:05]} 4. Be2 {[%emt 0:00:30]} Bxe2 {[%emt 0:00:07]} 5. Qxe2 {[%emt 0:03:01]} Qxd5 {[%emt 0:00:07]} 6. Nf3 {[%emt 0:00:16]} Nc6 {[%emt 0:00:07]} 7. O-O {[%emt 0:03:01]} O-O-O {[%emt 0:02:45] B01: Scandinavian Defence} 8. Rd1 {[%emt 0:05:32]} Qh5 {[%emt 0:02:32]} 9. c4 {[%emt 0:07:49]} e6 {[%emt 0:01:12]} 10. Nc3 {[%emt 0:00:31]} h6 {[%emt 0:04:51]} (10... Bd6 11. c5 Be7 12. Be3 Nd5 13. Rab1 Bf6 14. Ne4 Qg6 15. Ng3 h5 16. h3 Nxe3 17. Qxe3 Nxd4 18. Ne4 Nxf3+ 19. Qxf3 {0-1 (27) McShane,L (2651)-Vlassov,N (2476) playchess.com INT 2004}) 11. Bf4 {[%emt 0:01:14]} g5 {[%emt 0:03:36]} 12. Be5 {[%emt 0:08:20]} Bg7 $146 {[%emt 0:16:23]} ({Predecessor:} 12... Nxe5 13. Qxe5 Qg6 14. Qa5 a6 15. Ne5 Qf5 16. b4 Bd6 17. Nxf7 Bxh2+ {½-½ (62) Dodaj,G (1942)-Hankinson,C (2115) Lansing 2002}) 13. Bxf6 {[%emt 0:01:39]} Bxf6 {[%emt 0:02:02]} 14. d5 {[%emt 0:17:56]} Ne5 {[%emt 0:00:11]} 15. Nxe5 {[%emt 0:03:17]} Qxe2 {[%emt 0:07:33]} 16. Nxe2 {[%emt 0:03:41]} Bxe5 {[%emt 0:00:05]} 17. Nc3 {[%emt 0:00:06]} Bxc3 {[%emt 0:00:05]} 18. bxc3 {[%emt 0:02:32]} e5 {[%emt 0:00:49]} (18... Rd6 $17 19. Rd4 Rhd8) 19. c5 {[%emt 0:00:01]} Kd7 {[%emt 0:03:28]} 20. a4 {[%emt 0:05:52]} b6 {[%emt 0:03:09]} 21. cxb6 {[%emt 0:03:29]} cxb6 {[%emt 0:05:58]} 22. a5 {[%emt 0:01:29] [#]} b5 $1 {[%emt 0:01:30]} 23. Rab1 {[%emt 0:01:01]} Rb8 {[%emt 0:01:11]} 24. g4 {[%emt 0:01:22]} a6 {[%emt 0:01:57]} 25. Rd3 {[%emt 0:04:50]} Kd6 {[%emt 0:02:30]} 26. Rf3 {[%emt 0:01:35]} Ke7 {[%emt 0:01:08]} 27. Rb4 $17 {[%emt 0:01:05]} (27. d6+ $15 Ke6 28. Rd1) 27... Rbc8 {[%emt 0:05:12]} 28. Kf1 {[%emt 0:03:44]} Rc5 {[%emt 0:02:58]} 29. Ke2 {[%emt 0:02:14]} Rxd5 {[%emt 0:02:54]} 30. c4 {[%emt 0:05:25]} Rd4 {[%emt 0:00:28]} 31. Rfb3 {[%emt 0:00:01]} Rxc4 {[%emt 0:02:30]} 32. Rxc4 {[%emt 0:00:45]} bxc4 {[%emt 0:01:12]} 33. Rb6 {[%emt 0:00:23]} Rc8 {[%emt 0:13:42]} 34. Rxa6 {[%emt 0:00:02]} f6 {[%emt 0:00:07]} 35. Kd2 {[%emt 0:00:47]} Rc7 {[%emt 0:00:47]} 36. Kc3 {[%emt 0:00:31]} Rc5 {[%emt 0:03:38]} 37. h3 {[%emt 0:04:26]} Kf7 {[%emt 0:00:02]} 38. Ra7+ {[%emt 0:00:39]} Ke6 {[%emt 0:06:35]} 39. a6 {[%emt 0:01:49]} Kd5 {[%emt 0:01:52]} 40. Rd7+ {[%emt 0:03:31]} Ke6 {[%emt 0:01:10]} 41. Rb7 {[%emt 0:00:46]} Ra5 {[%emt 0:00:49]} 42. a7 {[%emt 0:00:13]} Ra4 {[%emt 0:00:24]} 43. Rc7 {[%emt 0:00:43]} Kd5 {[%emt 0:01:15]} 44. Rd7+ {[%emt 0:00:11]} Kc6 {[%emt 0:00:44]} 45. Rf7 {[%emt 0:00:15]} Kc5 {[%emt 0:00:00]} 46. Rc7+ {[%emt 0:00:38]} Kb6 {[%emt 0:00:17]} 47. Rf7 {[%emt 0:01:07]} Kc5 {[%emt 0:00:07]} 48. Rc7+ {[%emt 0:00:00]} Kd5 {[%emt 0:00:10]} 49. Rd7+ {[%emt 0:00:10]} 1/2-1/2

[Event "RUS-IND U14 Match 2019"]
[Site "Sochi"]
[Date "2019.06.08"]
[Round "7.1"]
[White "Mendonca, Leon Luke"]
[Black "Murzin, Volodar"]
[Result "1/2-1/2"]
[ECO "D02"]
[WhiteElo "2405"]
[BlackElo "2418"]
[Annotator "NA"]
[PlyCount "100"]
[EventDate "2019.06.02"]
[EventType "team-tourn"]
[EventCountry "RUS"]
[SourceTitle "playchess.com"]
[Source "ChessBase"]
[SourceQuality "1"]
[WhiteTeam "India"]
[BlackTeam "Russia"]
[WhiteTeamCountry "IND"]
[BlackTeamCountry "RUS"]
[TimeControl "5400+30"]

1. Nf3 {[%emt 0:00:00]} d5 {[%emt 0:00:04]} 2. d4 {[%emt 0:00:00]} Nf6 {[%emt 0:00:00]} 3. Bf4 {[%emt 0:00:00]} g6 {[%emt 0:01:15]} 4. e3 {[%emt 0:00:16]} Bg7 {[%emt 0:00:36]} 5. Be2 {[%emt 0:00:25]} O-O {[%emt 0:00:24]} 6. h3 {[%emt 0:00:55]} c5 {[%emt 0:00:19]} 7. c3 {[%emt 0:00:09]} Nc6 {[%emt 0:01:18]} 8. Nbd2 {[%emt 0:02:03]} Bf5 {[%emt 0:06:37]} 9. O-O {[%emt 0:01:39]} Re8 {[%emt 0:14:46]} 10. Qb3 {[%emt 0:09:51]} Na5 {[%emt 0:04:37]} 11. Qa4 {[%emt 0:13:04]} Bd7 {[%emt 0:04:22]} 12. Qa3 {[%emt 0:09:32]} cxd4 {[%emt 0:06:07]} 13. cxd4 {[%emt 0:01:57]} Bf8 {[%emt 0:05:50]} 14. Ne5 {[%emt 0:19:37]} e6 {[%emt 0:07:50]} 15. Qd3 {[%emt 0:01:18]} a6 {[%emt 0:00:39]} 16. Nxd7 {[%emt 0:00:01]} Nxd7 {[%emt 0:01:42]} 17. a3 {[%emt 0:04:48]} Nb6 {[%emt 0:02:49]} 18. b4 {[%emt 0:11:53]} Nac4 {[%emt 0:04:32]} 19. Nb3 {[%emt 0:08:43]} Bd6 {[%emt 0:00:35]} 20. Bxd6 {[%emt 0:00:43]} Nxd6 {[%emt 0:05:29]} 21. a4 {[%emt 0:01:23]} Nbc4 {[%emt 0:00:13]} 22. a5 {[%emt 0:02:09]} f5 {[%emt 0:01:07]} 23. Nc5 {[%emt 0:01:41]} Kh8 {[%emt 0:00:43]} 24. Qc2 {[%emt 0:02:07]} Qe7 {[%emt 0:03:17]} 25. Rfb1 {[%emt 0:01:13]} Rac8 {[%emt 0:00:36]} 26. Bxc4 {[%emt 0:01:16]} dxc4 {[%emt 0:02:43]} 27. Rd1 {[%emt 0:01:40]} Qg7 {[%emt 0:00:16]} 28. Qc3 {[%emt 0:01:52]} g5 {[%emt 0:00:45]} 29. Ra2 {[%emt 0:00:30]} Re7 {[%emt 0:01:54]} 30. Re2 {[%emt 0:01:32]} h6 {[%emt 0:02:04]} 31. e4 {[%emt 0:00:38]} fxe4 {[%emt 0:04:04]} 32. Rde1 {[%emt 0:00:27]} Kg8 {[%emt 0:06:49]} 33. Kh1 {[%emt 0:01:53]} Qf7 {[%emt 0:00:39]} 34. Nxe4 {[%emt 0:00:15]} Nb5 {[%emt 0:00:18]} 35. Qe3 {[%emt 0:00:31]} Rd8 {[%emt 0:05:15]} 36. Rd2 {[%emt 0:00:39]} Red7 {[%emt 0:02:06]} 37. Nc5 {[%emt 0:00:53]} Rxd4 {[%emt 0:00:16]} 38. Rxd4 {[%emt 0:00:07]} Nxd4 {[%emt 0:00:36]} 39. Rd1 {[%emt 0:00:37]} Nc6 {[%emt 0:03:09]} 40. Rxd8+ {[%emt 0:00:56]} Nxd8 {[%emt 0:00:00]} 41. Qd4 {[%emt 0:00:01]} Nc6 {[%emt 0:00:51]} 42. Qxc4 {[%emt 0:00:03]} Qxf2 {[%emt 0:02:00]} 43. Qxe6+ {[%emt 0:00:31]} Qf7 {[%emt 0:00:00]} 44. Qxh6 {[%emt 0:00:00]} Qf1+ {[%emt 0:01:29]} 45. Kh2 {[%emt 0:00:39]} Qf4+ {[%emt 0:00:36]} 46. Kh1 {[%emt 0:00:12]} Qf1+ {[%emt 0:00:35]} 47. Kh2 {[%emt 0:00:41]} Qf4+ {[%emt 0:00:06]} 48. Kg1 {[%emt 0:00:31]} Qd4+ {[%emt 0:00:10]} 49. Kh1 {[%emt 0:00:03]} Qa1+ {[%emt 0:00:10]} 50. Kh2 {[%emt 0:00:01]} Qe5+ {[%emt 0:00:01]} 1/2-1/2

[Event "RUS-IND U14 Match 2019"]
[Site "Sochi"]
[Date "2019.06.08"]
[Round "7.2"]
[White "Gukesh D"]
[Black "Tsvetkov, Andrey"]
[Result "0-1"]
[ECO "B25"]
[WhiteElo "2543"]
[BlackElo "2323"]
[Annotator "ChessBase"]
[PlyCount "90"]
[EventDate "2019.06.02"]
[EventType "team-tourn"]
[EventCountry "RUS"]
[SourceTitle "playchess.com"]
[Source "ChessBase"]
[SourceQuality "1"]
[WhiteTeam "India"]
[BlackTeam "Russia"]
[WhiteTeamCountry "IND"]
[BlackTeamCountry "RUS"]
[TimeControl "5400+30"]

1. e4 {[%emt 0:00:00]} c5 {[%emt 0:00:00]} 2. Nc3 {[%emt 0:00:00]} d6 {[%emt 0:00:04]} 3. Nge2 {[%emt 0:00:09]} Nf6 {[%emt 0:00:25]} 4. g3 {[%emt 0:00:31]} g6 {[%emt 0:00:20]} 5. Bg2 {[%emt 0:00:15]} Bg7 {[%emt 0:00:13]} 6. O-O {[%emt 0:00:06]} O-O {[%emt 0:00:07]} 7. d3 {[%emt 0:04:01]} Nc6 {[%emt 0:00:14]} 8. Bg5 {[%emt 0:00:25]} Rb8 {[%emt 0:01:02]} 9. Qd2 {[%emt 0:01:36]} b5 {[%emt 0:00:19]} 10. Bh6 {[%emt 0:04:13]} b4 {[%emt 0:00:12]} 11. Nd5 {[%emt 0:00:00]} Bxh6 {[%emt 0:00:54]} 12. Qxh6 {[%emt 0:01:01]} Ng4 {[%emt 0:00:09]} 13. Qd2 {[%emt 0:16:27]} e6 {[%emt 0:00:39]} 14. Ndf4 {[%emt 0:00:06]} Nge5 {[%emt 0:30:24]} 15. Nh3 {[%emt 0:13:58]} Nd4 {[%emt 0:12:43]} 16. Nxd4 {[%emt 0:13:26]} cxd4 {[%emt 0:00:01]} 17. f3 {[%emt 0:02:57]} Qc7 {[%emt 0:00:12]} 18. Nf2 {[%emt 0:00:00]} Bb7 {[%emt 0:06:09]} 19. f4 {[%emt 0:02:32]} Nd7 {[%emt 0:11:56]} 20. Rac1 {[%emt 0:03:32]} Rfc8 {[%emt 0:00:38]} 21. g4 {[%emt 0:11:28]} Qc5 {[%emt 0:08:32]} 22. h4 {[%emt 0:07:56]} f5 {[%emt 0:05:29]} 23. Kh2 {[%emt 0:04:31]} Nf6 {[%emt 0:01:11]} 24. Qe2 {[%emt 0:03:10]} Kf7 {[%emt 0:01:55]} 25. Bf3 {[%emt 0:01:53]} Re8 {[%emt 0:02:37]} 26. Rg1 {[%emt 0:02:45]} Rbc8 {[%emt 0:04:24]} 27. Nh3 {[%emt 0:01:39]} fxe4 {[%emt 0:00:50]} 28. dxe4 {[%emt 0:00:31]} Kg8 {[%emt 0:01:36]} 29. Nf2 {[%emt 0:01:33]} Qc4 {[%emt 0:00:30]} 30. Qe1 {[%emt 0:00:54]} a5 {[%emt 0:00:29]} 31. g5 {[%emt 0:01:34]} Nd7 {[%emt 0:07:10]} 32. h5 {[%emt 0:00:00]} Rf8 {[%emt 0:00:47]} 33. Qd2 {[%emt 0:01:41]} d5 {[%emt 0:00:47]} 34. Be2 {[%emt 0:01:16]} Qc7 {[%emt 0:02:01]} 35. Nh3 {[%emt 0:00:07]} dxe4 {[%emt 0:00:21]} 36. Qxd4 {[%emt 0:00:37]} e5 {[%emt 0:00:52]} 37. fxe5 {[%emt 0:01:00]} Nxe5 {[%emt 0:01:01]} 38. Rg3 {[%emt 0:00:23]} Rcd8 {[%emt 0:00:45]} 39. Qe3 {[%emt 0:00:33]} Rf3 {[%emt 0:00:34]} 40. Bxf3 {[%emt 0:00:01]} Nxf3+ {[%emt 0:00:00]} 41. Kg2 {[%emt 0:00:32]} Nh4+ {[%emt 0:00:04]} 42. Kh2 {[%emt 0:00:13]} Rd2+ {[%emt 0:01:05]} 43. Kg1 {[%emt 0:00:48]} Nf5 {[%emt 0:00:40]} 44. Qxd2 {[%emt 0:00:44]} Qxg3+ {[%emt 0:00:33]} 45. Qg2 {[%emt 0:00:27]} Qe3+ {[%emt 0:00:18]} 0-1

[Event "RUS-IND U14 Match 2019"]
[Site "Sochi"]
[Date "2019.06.08"]
[Round "7.3"]
[White "Savitha Shri B"]
[Black "Kirchei, Viktoriia"]
[Result "0-1"]
[ECO "C01"]
[WhiteElo "2144"]
[BlackElo "2026"]
[Annotator "NA"]
[PlyCount "84"]
[EventDate "2019.06.02"]
[EventType "team-tourn"]
[EventCountry "RUS"]
[SourceTitle "playchess.com"]
[Source "ChessBase"]
[SourceQuality "1"]
[WhiteTeam "IND"]
[BlackTeam "RUS"]
[WhiteTeamCountry "IND"]
[BlackTeamCountry "RUS"]
[TimeControl "5400+30"]

1. e4 {[%emt 0:00:00]} e6 {[%emt 0:00:00]} 2. d4 {[%emt 0:00:20]} d5 {[%emt 0:00:10]} 3. Bd3 {[%emt 0:00:00]} dxe4 {[%emt 0:00:00]} 4. Bxe4 {[%emt 0:00:08]} Nf6 {[%emt 0:00:08]} 5. Bf3 {[%emt 0:00:07]} c5 {[%emt 0:00:03]} 6. Ne2 {[%emt 0:00:08]} Be7 {[%emt 0:00:05]} 7. O-O {[%emt 0:01:02]} O-O {[%emt 0:00:18]} 8. Nbc3 {[%emt 0:00:25]} cxd4 {[%emt 0:00:04]} 9. Nxd4 {[%emt 0:06:05]} e5 {[%emt 0:02:28]} 10. Ndb5 {[%emt 0:01:35]} Nc6 {[%emt 0:01:20]} 11. Be3 {[%emt 0:08:57]} Bf5 {[%emt 0:01:56]} 12. Qxd8 {[%emt 0:01:28]} Rfxd8 {[%emt 0:00:21]} 13. Nc7 {[%emt 0:05:50]} Rac8 {[%emt 0:00:06]} 14. N7d5 {[%emt 0:01:38]} Nxd5 {[%emt 0:04:09]} 15. Nxd5 {[%emt 0:00:26]} Bf8 {[%emt 0:03:20]} 16. c4 {[%emt 0:00:08]} Bd3 {[%emt 0:02:48]} 17. Rfc1 {[%emt 0:09:34]} f5 {[%emt 0:07:54]} 18. Bg5 {[%emt 0:01:00]} Rd7 {[%emt 0:03:50]} 19. Be3 {[%emt 0:03:13]} f4 {[%emt 0:01:43]} 20. Bg4 {[%emt 0:09:45]} fxe3 {[%emt 0:14:53]} 21. Bxd7 {[%emt 0:03:32]} exf2+ {[%emt 0:00:04]} 22. Kxf2 {[%emt 0:00:50]} Bc5+ {[%emt 0:00:04]} 23. Kg3 {[%emt 0:05:12]} Rf8 {[%emt 0:00:07]} 24. h3 {[%emt 0:02:31]} Nd4 {[%emt 0:01:28]} 25. Kh2 {[%emt 0:06:15]} e4 {[%emt 0:02:24]} 26. Bg4 {[%emt 0:00:39]} g6 {[%emt 0:00:06]} 27. Rd1 {[%emt 0:00:36]} h5 {[%emt 0:00:29]} 28. Bd7 {[%emt 0:06:53]} Ne2 {[%emt 0:03:03]} 29. Rf1 {[%emt 0:06:22]} Bd6+ {[%emt 0:02:26]} 30. g3 {[%emt 0:06:32]} Nxg3 {[%emt 0:01:01]} 31. Rxf8+ {[%emt 0:00:00]} Kxf8 {[%emt 0:00:41]} 32. c5 {[%emt 0:01:23]} Be5 {[%emt 0:04:35]} 33. Kg2 {[%emt 0:02:48]} Bc4 {[%emt 0:10:27]} 34. Ne3 {[%emt 0:00:36]} Be2 {[%emt 0:00:48]} 35. Kf2 {[%emt 0:00:03]} h4 {[%emt 0:00:11]} 36. Bg4 {[%emt 0:01:03]} Bd3 {[%emt 0:00:41]} 37. Kg2 {[%emt 0:00:40]} Bxb2 {[%emt 0:06:10]} 38. Rd1 {[%emt 0:00:41]} Bd4 {[%emt 0:00:00]} 39. Nd5 {[%emt 0:03:40]} Be5 {[%emt 0:04:08]} 40. Nb4 {[%emt 0:02:29]} Bb5 {[%emt 0:00:12]} 41. Re1 {[%emt 0:03:06]} Bc3 {[%emt 0:06:17]} 42. Rxe4 {[%emt 0:00:58]} Nxe4 {[%emt 0:00:37]} 0-1